fUSD/lending_fUSD_20250415
["ID","MTS","AMOUNT","RATE_DAILY","PERIOD"]
[358112683,1744737040976,-500.0,0.00017999,2]
[358112684,1744737040985,-500.0,0.00017999,2]
[358112685,1744737040994,-500.0,0.00017999,2]
[358112686,1744737041003,-500.0,0.00017999,2]
[358112687,1744737041011,-500.0,0.00017999,2]
[358112688,1744737041021,-592.8873033,0.00017999,2]
[358112689,1744737041030,-500.0,0.00017999,2]
[358112690,1744737041039,-500.0,0.00017999,2]
[358112691,1744737041048,-500.0,0.00017999,2]
[358112692,1744737041057,-599.01703557,0.00017999,2]
[358112693,1744737041066,-500.0,0.00017999,2]
[358112694,1744737041075,-500.0,0.00017999,2]
[358112695,1744737041084,-500.0,0.00017999,2]
[358112696,1744737041092,-500.0,0.00017999,2]
[358112697,1744737041101,-392.5413115,0.00017999,2]
[358112698,1744737041110,-306.05987567,0.00017999,2]
[358112699,1744737041119,-594.28838849,0.00017999,2]
[358112700,1744737041127,-500.0,0.00017999,2]
[358112701,1744737041136,-500.0,0.00017999,2]
[358112702,1744737041145,-500.0,0.00017999,2]
[358112703,1744737041154,-500.0,0.00017999,2]
[358112704,1744737041163,-500.0,0.00017999,2]
[358112705,1744737041171,-500.0,0.00017999,2]
[358112706,1744737041180,-500.0,0.00017999,2]
[358112707,1744737041190,-500.0,0.00017999,2]
[358112708,1744737041199,-500.0,0.00017999,2]
[358112709,1744737041207,-500.0,0.00017999,2]
[358112710,1744737041216,-500.0,0.00017999,2]
[358112711,1744737041226,-500.0,0.00017999,2]
[358112712,1744737041235,-535.34326142,0.00017999,2]
[358112713,1744737041243,-500.0,0.00017999,2]
[358112714,1744737041252,-500.0,0.00017999,2]
[358112715,1744737041262,-500.0,0.00017999,2]
[358112716,1744737041271,-500.0,0.00017999,2]
[358112717,1744737041280,-500.0,0.00017999,2]
[358112718,1744737041291,-500.0,0.00017999,2]
[358112719,1744737041300,-500.0,0.00017999,2]
[358112720,1744737041309,-500.0,0.00017999,2]
[358112721,1744737041319,-500.0,0.00017999,2]
[358112722,1744737041328,-500.0,0.00017999,2]
[358112723,1744737041338,-500.0,0.00017999,2]
[358112724,1744737041347,-500.0,0.00017999,2]
[358112725,1744737041356,-500.0,0.00017999,2]
[358112726,1744737041365,-500.0,0.00017999,2]
[358112727,1744737041375,-500.0,0.00017999,2]
[358112728,1744737041385,-500.0,0.00017999,2]
[358112729,1744737041397,-500.0,0.00017999,2]
[358112730,1744737041408,-272.78,0.00017999,2]
[358112731,1744737041417,-500.0,0.00017999,2]
[358112732,1744737041427,-500.0,0.00017999,2]
[358112733,1744737041439,-500.0,0.00017999,2]
[358112734,1744737041448,-500.0,0.00017999,2]
[358112735,1744737041459,-500.0,0.00017999,2]
[358112736,1744737041470,-500.0,0.00017999,2]
[358112737,1744737041479,-500.0,0.00017999,2]
[358112738,1744737041490,-500.0,0.00017999,2]
[358112739,1744737041501,-500.0,0.00017999,2]
[358112740,1744737041514,-699.04,0.00017999,2]
[358112741,1744737041524,-699.04,0.00017999,2]
[358112742,1744737041535,-699.04,0.00017999,2]
[358112743,1744737041546,-699.04,0.00017999,2]
[358112744,1744737041556,-699.04,0.00017999,2]
[358112745,1744737041565,-699.04,0.00017999,2]
[358112746,1744737041575,-699.04,0.00017999,2]
[358112747,1744737041587,-699.04,0.00017999,2]
[358112748,1744737041596,-699.04,0.00017999,2]
[358112749,1744737041605,-699.04,0.00017999,2]
[358112750,1744737041614,-699.04,0.00017999,2]
[358112751,1744737041623,-699.04,0.00017999,2]
[358112752,1744737041632,-699.04,0.00017999,2]
[358112753,1744737041642,-699.04,0.00017999,2]
[358112754,1744737041650,-699.04,0.00017999,2]
[358112755,1744737041659,-699.04,0.00017999,2]
[358112756,1744737041669,-699.04,0.00017999,2]
[358112757,1744737041678,-699.04,0.00017999,2]
[358112758,1744737041688,-699.04,0.00017999,2]
[358112759,1744737041699,-699.04,0.00017999,2]
[358112760,1744737041709,-699.04,0.00017999,2]
[358112761,1744737041719,-699.04,0.00017999,2]
[358112762,1744737041728,-699.04,0.00017999,2]
[358112763,1744737041738,-699.07421951,0.00017999,2]
[358112764,1744737041748,-500.0,0.00017999,2]
[358112765,1744737041758,-500.0,0.00017999,2]
[358112766,1744737041767,-500.94455243,0.00017999,2]
[358112767,1744737041778,-500.0,0.00017999,2]
[358112768,1744737041787,-22.12560682,0.00017999,2]
[358112769,1744737042108,-477.87439318,0.00017999,2]
[358112770,1744737042118,-514.36,0.00017999,2]
[358112771,1744737042127,-500.0,0.00017999,2]
[358112772,1744737042136,-500.0,0.00017999,2]
[358112773,1744737042145,-500.0,0.00017999,2]
[358112774,1744737042154,-500.0,0.00017999,2]
[358112775,1744737042164,-500.0,0.00017999,2]
[358112776,1744737042173,-500.0,0.00017999,2]
[358112777,1744737042183,-500.0,0.00017999,2]
[358112778,1744737042192,-500.0,0.00017999,2]
[358112779,1744737042204,-500.0,0.00017999,2]
[358112780,1744737042213,-500.0,0.00017999,2]
[358112781,1744737042222,-500.0,0.00017999,2]
[358112782,1744737042231,-500.0,0.00017999,2]
[358112783,1744737042240,-500.0,0.00017999,2]
[358112784,1744737042249,-500.0,0.00017999,2]
[358112785,1744737042258,-500.0,0.00017999,2]
[358112786,1744737042267,-537.95,0.00017999,2]
[358112787,1744737042276,-500.0,0.00017999,2]
[358112788,1744737042286,-370.61438685,0.00017999,2]
[358112789,1744737042295,-500.0,0.00017999,2]
[358112790,1744737042305,-500.0,0.00017999,2]
[358112791,1744737042314,-572.24377167,0.00017999,2]
[358112792,1744737042324,-500.0,0.00017999,2]
[358112793,1744737042334,-150.0,0.00017999,2]
[358112794,1744737042343,-187.61037389,0.00017999,2]
[358112795,1744737042353,-215.9594592,0.00017999,2]
[358112796,1744737042363,-169.0,0.00018,2]
[358112797,1744737042372,-172.73731306,0.00018,2]
[358112798,1744737042382,-120934.63866931,0.00018,2]
[358112899,1744737044467,-1000.0,0.00017843,2]
[358112900,1744737044476,-1000.0,0.00017843,2]
[358112901,1744737044486,-1000.0,0.00017843,2]
[358112902,1744737044495,-1000.0,0.00017843,2]
[358112903,1744737044504,-1000.0,0.00017843,2]
[358112904,1744737044513,-9351.0,0.00018,2]
[358112905,1744737046010,-396.32776,0.00017843,2]
[358112910,1744737137198,255.63,0.00016896,2]
[358112911,1744737160694,23900.0,0.00016886,2]
[358112912,1744737209867,166.21,0.00016864,2]
[358112913,1744737300631,778.82,0.00014944,2]
[358112914,1744737300850,778.82,0.00017208,2]
[358112915,1744737322099,250.0,0.00016863,2]
[358112916,1744737349491,1381.43,0.00016863,2]
[358112917,1744737425288,200.0,0.00016862,2]
[358112918,1744737426925,1282.7,0.00016864,2]
[358112919,1744737494255,3592.0,0.00025,30]
[358112920,1744737502544,1438.05,0.00016865,2]
[358112921,1744737529621,200.0,0.000161,2]
[358112922,1744737552747,1000.0,0.00016867,2]
[358112923,1744737605508,772.27,0.00017,2]
[358112924,1744737607274,772.27,0.00017,2]
[358112925,1744737607882,250.0,0.00017,2]
[358112926,1744737648606,250.0,0.00017,2]
[358112928,1744737829895,2085.11,0.00016832,2]
[358112929,1744737858852,352.753765,0.00017496,2]
[358112930,1744737865199,200.0,0.00016836,2]
[358112931,1744737968016,99577.64,0.00018,7]
[358112932,1744737968043,100000.0,0.00018,7]
[358112933,1744737968070,100000.0,0.00018,7]
[358112935,1744738016944,372.59,0.00016836,2]
[358112936,1744738115469,250.0,0.00016865,2]
[358112959,1744738231959,-250.0,0.00017606,2]
[358112960,1744738231968,-158.14756455,0.00017628,2]
[358112961,1744738231978,-279.77011962,0.000177,2]
[358112962,1744738231986,-51.57187683,0.00017707,2]
[358112963,1744738232013,-155.82812317,0.00017707,2]
[358112964,1744738232022,-300.0,0.00017717,2]
[358112965,1744738232033,-594.17187683,0.00017718,2]
[358112966,1744738232066,-1577.36276331,0.00017718,2]
[358112967,1744738232174,-8733.29675817,0.00017718,2]
[358112968,1744738232185,-150.0,0.00017728,2]
[358112969,1744738232195,-150.0,0.0001773,2]
[358112970,1744738232205,-150.0,0.00017733,2]
[358112971,1744738232215,-1000.0,0.00017734,2]
[358112972,1744738232227,-150.0,0.00017734,2]
[358112973,1744738232237,-150.0,0.00017734,2]
[358112974,1744738232246,-150.0,0.00017735,2]
[358112975,1744738232256,-150.0,0.00017745,2]
[358112976,1744738232266,-150.0,0.00017748,2]
[358112977,1744738232276,-150.0,0.00017748,2]
[358112978,1744738232285,-150.0,0.00017751,2]
[358112979,1744738232296,-150.0,0.00017751,2]
[358112980,1744738232306,-150.0,0.00017751,2]
[358112981,1744738232315,-150.0,0.00017752,2]
[358112982,1744738232325,-150.0,0.00017756,2]
[358112983,1744738232335,-150.0,0.00017757,2]
[358112985,1744738232344,-668.65185757,0.0001776,2]
[358112987,1744738232354,-281.3369,0.00017762,2]
[358112989,1744738232363,-871.36610197,0.00017762,2]
[358112991,1744738232372,-150.0,0.00017764,2]
[358112993,1744738232382,-150.0,0.00017768,2]
[358112995,1744738232391,-150.0,0.0001777,2]
[358112997,1744738232401,-150.0,0.0001777,2]
[358112999,1744738232410,-150.0,0.00017773,2]
[358113001,1744738232420,-150.0,0.00017774,2]
[358113003,1744738232429,-871.36610197,0.00017777,2]
[358113005,1744738232439,-150.0,0.00017779,2]
[358113007,1744738232448,-150.0,0.00017781,2]
[358113009,1744738232458,-150.0,0.00017781,2]
[358113011,1744738232467,-150.0,0.00017786,2]
[358113013,1744738232477,-150.0,0.00017787,2]
[358113016,1744738232486,-150.0,0.00017787,2]
[358113019,1744738232495,-150.0,0.0001779,2]
[358113022,1744738232504,-871.36610197,0.00017793,2]
[358113026,1744738232513,-150.0,0.00017793,2]
[358113029,1744738232523,-150.0,0.00017795,2]
[358113032,1744738232532,-150.0,0.00017798,2]
[358113033,1744738232542,-150.0,0.00017799,2]
[358113035,1744738232551,-150.0,0.000178,2]
[358113038,1744738232561,-150.0,0.00017801,2]
[358113040,1744738232570,-150.0,0.00017802,2]
[358113043,1744738232579,-150.0,0.00017805,2]
[358113045,1744738232588,-907.29459655,0.00017805,2]
[358113047,1744738232597,-871.36610197,0.00017808,2]
[358113049,1744738232607,-150.0,0.00017812,2]
[358113051,1744738232616,-150.0,0.00017816,2]
[358113053,1744738232625,-150.0,0.00017818,2]
[358113055,1744738232634,-150.0,0.00017819,2]
[358113057,1744738232644,-1000.0,0.0001782,2]
[358113059,1744738232653,-150.0,0.00017823,2]
[358113061,1744738232662,-1000.0,0.00017823,2]
[358113063,1744738232672,-500.0,0.00017823,2]
[358113065,1744738232681,-150.0,0.00017823,2]
[358113067,1744738232691,-150.0,0.00017823,2]
[358113069,1744738232700,-150.0,0.00017823,2]
[358113071,1744738232709,-150.0,0.00017823,2]
[358113072,1744738232719,-150.0,0.00017823,2]
[358113073,1744738232728,-150.17437954,0.00017823,2]
[358113074,1744738232737,-150.0,0.00017823,2]
[358113075,1744738232747,-150.0,0.00017823,2]
[358113076,1744738232756,-150.0,0.00017823,2]
[358113077,1744738232765,-150.0,0.00017823,2]
[358113078,1744738232775,-150.48249657,0.00017823,2]
[358113079,1744738232784,-150.0,0.00017823,2]
[358113080,1744738232794,-500.0,0.00017823,2]
[358113081,1744738232803,-500.0,0.00017823,2]
[358113082,1744738232813,-150.0,0.00017823,2]
[358113083,1744738232822,-150.0,0.00017823,2]
[358113084,1744738232832,-150.0,0.00017823,2]
[358113085,1744738232841,-150.29609266,0.00017823,2]
[358113086,1744738232851,-275.61520981,0.00017823,2]
[358113087,1744738232860,-871.36610197,0.00017823,2]
[358113088,1744738232870,-150.0,0.00017824,2]
[358113089,1744738232880,-150.0,0.00017824,2]
[358113090,1744738232890,-419.38315858,0.00017825,2]
[358113105,1744738237873,-150.0,0.00017734,2]
[358113107,1744738237882,-150.0,0.00017745,2]
[358113109,1744738237891,-150.0,0.00017748,2]
[358113111,1744738237900,-65.55170183,0.00017749,2]
[358113113,1744738237911,-84.44829817,0.00017749,2]
[358113115,1744738237921,-150.0,0.00017755,2]
[358113117,1744738237931,-150.0,0.00017768,2]
[358113119,1744738237940,-150.0,0.00017771,2]
[358113121,1744738237950,-150.0,0.00017773,2]
[358113136,1744738238161,-150.0,0.00017802,2]
[358113137,1744738238171,-150.0,0.00017806,2]
[358113138,1744738238180,-150.0,0.00017811,2]
[358113139,1744738238190,-150.0,0.00017813,2]
[358113140,1744738238199,-150.0,0.00017817,2]
[358113141,1744738238208,-150.0,0.0001782,2]
[358113142,1744738238219,-150.0,0.00017823,2]
[358113143,1744738238230,-47.59570183,0.00017823,2]
[358113144,1744738238248,-102.40429817,0.00017823,2]
[358113145,1744738238258,-1323.61684142,0.00017825,2]
[358113146,1744738238269,-1135.0,0.00017825,2]
[358113147,1744738238279,-150.0,0.00017834,2]
[358113148,1744738238288,-871.36610197,0.00017839,2]
[358113149,1744738238299,-150.0,0.0001784,2]
[358113150,1744738238309,-1244.33180469,0.00017842,2]
[358113151,1744738238318,-150.0,0.00017842,2]
[358113152,1744738238328,-296.49268158,0.00017842,2]
[358113153,1744738238337,-500.0,0.00017842,2]
[358113154,1744738238347,-500.0,0.00017842,2]
[358113155,1744738238357,-500.0,0.00017842,2]
[358113157,1744738238366,-500.0,0.00017842,2]
[358113159,1744738238376,-500.0,0.00017842,2]
[358113161,1744738238385,-500.0,0.00017842,2]
[358113163,1744738238395,-500.0,0.00017842,2]
[358113165,1744738238404,-500.0,0.00017842,2]
[358113167,1744738238414,-500.0,0.00017842,2]
[358113169,1744738238423,-500.0,0.00017842,2]
[358113172,1744738238432,-500.0,0.00017842,2]
[358113173,1744738238443,-500.0,0.00017842,2]
[358113175,1744738238453,-500.0,0.00017842,2]
[358113176,1744738238462,-500.0,0.00017842,2]
[358113177,1744738238471,-500.0,0.00017842,2]
[358113178,1744738238481,-500.0,0.00017842,2]
[358113179,1744738238490,-500.0,0.00017842,2]
[358113180,1744738238500,-500.0,0.00017842,2]
[358113181,1744738238509,-500.0,0.00017842,2]
[358113182,1744738238518,-500.0,0.00017842,2]
[358113183,1744738238528,-500.0,0.00017842,2]
[358113184,1744738238537,-500.0,0.00017842,2]
[358113185,1744738238547,-500.0,0.00017842,2]
[358113186,1744738238557,-500.0,0.00017842,2]
[358113187,1744738238567,-500.0,0.00017842,2]
[358113188,1744738238576,-500.0,0.00017842,2]
[358113189,1744738238585,-562.08246989,0.00017842,2]
[358113190,1744738238595,-500.0,0.00017842,2]
[358113191,1744738238604,-500.0,0.00017842,2]
[358113192,1744738238614,-500.0,0.00017842,2]
[358113193,1744738238623,-500.0,0.00017842,2]
[358113194,1744738238632,-500.0,0.00017842,2]
[358113195,1744738238641,-500.0,0.00017842,2]
[358113196,1744738238650,-500.0,0.00017842,2]
[358113197,1744738238659,-200.0,0.00017842,2]
[358113198,1744738238669,-603.67224,0.00017843,2]
[358113199,1744738238679,-1000.0,0.00017843,2]
[358113200,1744738238688,-1000.0,0.00017843,2]
[358113201,1744738238697,-1000.0,0.00017843,2]
[358113202,1744738238707,-1000.0,0.00017843,2]
[358113203,1744738238716,-1000.0,0.00017843,2]
[358113204,1744738238725,-1000.0,0.00017843,2]
[358113205,1744738238734,-1000.0,0.00017843,2]
[358113206,1744738238744,-1000.0,0.00017843,2]
[358113207,1744738238753,-1000.0,0.00017843,2]
[358113208,1744738238762,-1000.0,0.00017843,2]
[358113209,1744738238772,-1000.0,0.00017843,2]
[358113210,1744738238782,-1000.0,0.00017843,2]
[358113211,1744738238791,-1000.0,0.00017843,2]
[358113212,1744738238800,-1000.0,0.00017843,2]
[358113213,1744738238810,-1000.0,0.00017843,2]
[358113214,1744738238820,-1000.0,0.00017843,2]
[358113215,1744738238830,-1000.0,0.00017843,2]
[358113216,1744738238840,-1000.0,0.00017843,2]
[358113217,1744738238849,-1000.0,0.00017843,2]
[358113218,1744738238858,-1000.0,0.00017843,2]
[358113219,1744738238867,-1000.0,0.00017843,2]
[358113220,1744738238877,-1000.0,0.00017843,2]
[358113221,1744738238886,-1000.0,0.00017843,2]
[358113222,1744738238895,-1000.0,0.00017843,2]
[358113223,1744738238906,-1000.0,0.00017843,2]
[358113224,1744738238916,-1000.0,0.00017843,2]
[358113225,1744738238925,-1000.0,0.00017843,2]
[358113226,1744738238934,-1000.0,0.00017843,2]
[358113227,1744738238944,-840.0,0.00017843,2]
[358113228,1744738238953,-1000.0,0.00017843,2]
[358113229,1744738238962,-1000.0,0.00017843,2]
[358113230,1744738238972,-1000.0,0.00017843,2]
[358113231,1744738238981,-1000.0,0.00017843,2]
[358113232,1744738238992,-1000.0,0.00017843,2]
[358113233,1744738239003,-1000.0,0.00017843,2]
[358113234,1744738239012,-1000.0,0.00017843,2]
[358113235,1744738239021,-1000.0,0.00017843,2]
[358113236,1744738239031,-1000.0,0.00017843,2]
[358113237,1744738239041,-1000.0,0.00017843,2]
[358113238,1744738239050,-1000.0,0.00017843,2]
[358113239,1744738239059,-1000.0,0.00017843,2]
[358113240,1744738239068,-1000.0,0.00017843,2]
[358113241,1744738239078,-1000.0,0.00017843,2]
[358113242,1744738239088,-1000.0,0.00017843,2]
[358113243,1744738239098,-1000.0,0.00017843,2]
[358113244,1744738239107,-1000.0,0.00017843,2]
[358113245,1744738239117,-1000.0,0.00017843,2]
[358113246,1744738239126,-1000.0,0.00017843,2]
[358113247,1744738239136,-150.0,0.00017844,2]
[358113248,1744738239145,-150.0,0.00017847,2]
[358113249,1744738239154,-150.0,0.00017848,2]
[358113250,1744738239163,-150.0,0.00017849,2]
[358113251,1744738239172,-150.0,0.00017849,2]
[358113252,1744738239181,-150.0,0.0001785,2]
[358113253,1744738239190,-150.0,0.0001785,2]
[358113254,1744738239199,-150.0,0.0001785,2]
[358113255,1744738239209,-150.0,0.00017854,2]
[358113256,1744738239218,-871.36610197,0.00017854,2]
[358113257,1744738239230,-150.0,0.00017855,2]
[358113258,1744738239239,-150.0,0.00017855,2]
[358113259,1744738239248,-150.0,0.00017856,2]
[358113260,1744738239258,-150.0,0.00017857,2]
[358113261,1744738239269,-150.0,0.00017857,2]
[358113262,1744738239278,-64428.84524235,0.00017862,2]
[358113263,1744738239289,-151.0,0.00017862,2]
[358113264,1744738239300,-151.0,0.00017862,2]
[358113265,1744738239310,-151.0,0.00017862,2]
[358113266,1744738239319,-151.0,0.00017862,2]
[358113267,1744738239329,-151.83277,0.00017862,2]
[358113268,1744738239339,-633.982596,0.00017862,2]
[358113269,1744738239348,-633.982596,0.00017862,2]
[358113270,1744738239358,-181.537768,0.00017862,2]
[358113271,1744738239368,-181.537768,0.00017862,2]
[358113272,1744738239378,-192.614424,0.00017862,2]
[358113273,1744738239389,-192.614424,0.00017862,2]
[358113274,1744738239398,-151.0,0.00017862,2]
[358113275,1744738239407,-151.0,0.00017862,2]
[358113276,1744738239417,-151.0,0.00017862,2]
[358113277,1744738239426,-151.0,0.00017862,2]
[358113278,1744738239436,-151.0,0.00017862,2]
[358113279,1744738239447,-151.0,0.00017862,2]
[358113280,1744738239456,-151.0,0.00017862,2]
[358113281,1744738239468,-172.69117,0.00017862,2]
[358113282,1744738239477,-294.899366,0.00017862,2]
[358113283,1744738239487,-151.0,0.00017862,2]
[358113284,1744738239497,-161.580964,0.00017862,2]
[358113285,1744738239506,-151.0,0.00017862,2]
[358113286,1744738239515,-151.0,0.00017862,2]
[358113287,1744738239525,-329.126735,0.00017862,2]
[358113288,1744738239535,-151.0,0.00017862,2]
[358113289,1744738239545,-329.126735,0.00017862,2]
[358113290,1744738239555,-151.0,0.00017862,2]
[358113291,1744738239565,-186.632388,0.00017862,2]
[358113292,1744738239574,-186.632388,0.00017862,2]
[358113294,1744738239583,-155.181895,0.00017862,2]
[358113296,1744738239593,-151.0,0.00017862,2]
[358113297,1744738239602,-150.0,0.00017866,2]
[358113299,1744738239612,-871.36610197,0.00017869,2]
[358113300,1744738239621,-150.0,0.00017872,2]
[358113301,1744738239631,-500.0,0.00017873,2]
[358113302,1744738239640,-500.0,0.00017873,2]
[358113303,1744738239650,-152.27908917,0.00017873,2]
[358113305,1744738239659,-500.0,0.00017873,2]
[358113306,1744738239669,-632.2629958,0.00017873,2]
[358113308,1744738239678,-290.48154422,0.00017873,2]
[358113310,1744738239688,-500.0,0.00017873,2]
[358113311,1744738239697,-150.0,0.00017874,2]
[358113312,1744738239707,-150.0,0.00017875,2]
[358113313,1744738239716,-150.0,0.00017877,2]
[358113314,1744738239726,-150.0,0.00017878,2]
[358113315,1744738239735,-150.0,0.00017879,2]
[358113316,1744738239745,-642.22,0.0001788,2]
[358113317,1744738239754,-150.0,0.00017884,2]
[358113318,1744738239763,-150.0,0.00017884,2]
[358113319,1744738239772,-150.0,0.00017884,2]
[358113320,1744738239782,-871.36610197,0.00017885,2]
[358113321,1744738239791,-500.0,0.00017889,2]
[358113322,1744738239800,-500.0,0.00017889,2]
[358113323,1744738239809,-150.0,0.0001789,2]
[358113324,1744738239819,-114042.39498035,0.0001789,2]
[358113325,1744738239828,-152.21271,0.0001789,2]
[358113326,1744738239837,-151.0,0.0001789,2]
[358113327,1744738239847,-151.0,0.0001789,2]
[358113328,1744738239857,-151.0,0.0001789,2]
[358113329,1744738239866,-151.0,0.0001789,2]
[358113330,1744738239875,-151.0,0.0001789,2]
[358113331,1744738239884,-329.126735,0.0001789,2]
[358113332,1744738239893,-151.0,0.0001789,2]
[358113333,1744738239903,-329.126735,0.0001789,2]
[358113334,1744738239912,-151.0,0.0001789,2]
[358113335,1744738239922,-186.632388,0.0001789,2]
[358113336,1744738239932,-186.632388,0.0001789,2]
[358113337,1744738239943,-151.0,0.0001789,2]
[358113338,1744738239952,-150.0,0.00017893,2]
[358113339,1744738239962,-150.0,0.00017893,2]
[358113340,1744738239972,-150.0,0.00017895,2]
[358113341,1744738239982,-150.0,0.00017897,2]
[358113342,1744738239993,-150.0,0.00017897,2]
[358113343,1744738240003,-715.6942,0.00017899,2]
[358113344,1744738240014,-534.5893,0.00017899,2]
[358113345,1744738240024,-2715.374,0.00017899,2]
[358113346,1744738240033,-150.0,0.00017899,2]
[358113347,1744738240043,-2887.10054634,0.00017899,2]
[358113348,1744738240052,-151.0,0.00017899,2]
[358113349,1744738240062,-151.0,0.00017899,2]
[358113350,1744738240071,-297.25287,0.00017899,2]
[358113351,1744738240081,-151.0,0.00017899,2]
[358113352,1744738240090,-151.0,0.00017899,2]
[358113353,1744738240099,-152.434385,0.00017899,2]
[358113354,1744738240108,-151.0,0.00017899,2]
[358113355,1744738240118,-151.0,0.00017899,2]
[358113356,1744738240127,-151.0,0.00017899,2]
[358113357,1744738240136,-628.244373,0.00017899,2]
[358113358,1744738240146,-199.893006,0.00017899,2]
[358113359,1744738240155,-628.244373,0.00017899,2]
[358113360,1744738240165,-151.0,0.00017899,2]
[358113361,1744738240174,-151.0,0.00017899,2]
[358113362,1744738240184,-321.481904,0.00017899,2]
[358113363,1744738240194,-321.481904,0.00017899,2]
[358113364,1744738240204,-2887.10054634,0.00017899,2]
[358113365,1744738240213,-2887.10054634,0.00017899,2]
[358113366,1744738240225,-2887.10054634,0.00017899,2]
[358113367,1744738240235,-2887.10054634,0.00017899,2]
[358113368,1744738240245,-1000.0,0.00017899,2]
[358113369,1744738240254,-1000.0,0.00017899,2]
[358113370,1744738240264,-2887.10054634,0.000179,2]
[358113371,1744738240274,-2887.10054634,0.000179,2]
[358113372,1744738240284,-2887.10054634,0.000179,2]
[358113373,1744738240295,-2887.10054634,0.000179,2]
[358113374,1744738240305,-328.76882112,0.000179,2]
[358113375,1744738240315,-687.0367,0.000179,2]
[358113376,1744738240325,-151.0,0.000179,2]
[358113377,1744738240335,-151.0,0.000179,2]
[358113378,1744738240344,-151.0,0.000179,2]
[358113379,1744738240353,-165.497714,0.000179,2]
[358113380,1744738240362,-151.0,0.000179,2]
[358113381,1744738240372,-155.855058,0.000179,2]
[358113382,1744738240381,-151.0,0.000179,2]
[358113383,1744738240391,-151.0,0.000179,2]
[358113384,1744738240400,-590.89586834,0.000179,2]
[358113385,1744738240409,-2887.10054634,0.000179,2]
[358113386,1744738240419,-151.0,0.000179,2]
[358113387,1744738240428,-151.0,0.000179,2]
[358113388,1744738240438,-151.0,0.000179,2]
[358113389,1744738240448,-151.0,0.000179,2]
[358113390,1744738240458,-329.126735,0.000179,2]
[358113391,1744738240467,-151.0,0.000179,2]
[358113392,1744738240477,-329.126735,0.000179,2]
[358113393,1744738240487,-871.36610197,0.000179,2]
[358113394,1744738240497,-186.632388,0.000179,2]
[358113395,1744738240506,-186.632388,0.000179,2]
[358113396,1744738240516,-150.0,0.000179,2]
[358113397,1744738240526,-151.0,0.000179,2]
[358113398,1744738240535,-150.0,0.00017903,2]
[358113399,1744738240545,-500.0,0.00017903,2]
[358113400,1744738240554,-500.0,0.00017903,2]
[358113401,1744738240564,-500.0,0.00017903,2]
[358113402,1744738240574,-500.0,0.00017903,2]
[358113403,1744738240583,-500.0,0.00017903,2]
[358113404,1744738240592,-151.0,0.00017903,2]
[358113405,1744738240602,-151.0,0.00017903,2]
[358113406,1744738240611,-153.662604,0.00017903,2]
[358113407,1744738240621,-151.0,0.00017903,2]
[358113408,1744738240630,-568.08947205,0.00017903,2]
[358113409,1744738240640,-500.0,0.00017903,2]
[358113410,1744738240649,-151.0,0.00017903,2]